fUST/lending_fUST_20250424
["ID","MTS","AMOUNT","RATE_DAILY","PERIOD"]
[358792935,1745433042670,-151.0,0.00021698,2]
[358792936,1745433042679,-151.0,0.00021698,2]
[358792937,1745433042688,-896.264847,0.00021698,2]
[358792938,1745433042697,-896.264847,0.00021698,2]
[358792939,1745433042707,-151.0,0.00021698,2]
[358792940,1745433042716,-202.888917,0.00021698,2]
[358792941,1745433042727,-151.0,0.00021698,2]
[358792942,1745433042737,-151.0,0.00021698,2]
[358792943,1745433042748,-203.372074,0.00021698,2]
[358792944,1745433042758,-251.765975,0.00021698,2]
[358792945,1745433042768,-203.372074,0.00021698,2]
[358792946,1745433042778,-251.765975,0.00021698,2]
[358792947,1745433042788,-471.238532,0.00021698,2]
[358792948,1745433042799,-471.238532,0.00021698,2]
[358792949,1745433042810,-151.0,0.00021698,2]
[358792950,1745433042819,-151.0,0.00021698,2]
[358792951,1745433042830,-151.0,0.00021698,2]
[358792952,1745433042840,-689.285175,0.00021698,2]
[358792953,1745433042850,-689.285175,0.00021698,2]
[358792954,1745433042860,-151.0,0.00021698,2]
[358792955,1745433042870,-151.0,0.000217,3]
[358792956,1745433042880,-250.0,0.00021719,2]
[358792957,1745433042891,-151.0,0.00021755,2]
[358792958,1745433042900,-901.27230684,0.00021913,2]
[358792959,1745433042910,-151.0,0.00021916,2]
[358792960,1745433042920,-151.0,0.00021916,2]
[358792961,1745433042930,-151.0,0.00021917,2]
[358792962,1745433042940,-151.0,0.00021917,2]
[358792963,1745433042949,-160.0,0.00021917,2]
[358792964,1745433042959,-381.902977,0.00021918,2]
[358792965,1745433042969,-381.902977,0.00021918,2]
[358792966,1745433042979,-381.902977,0.00021918,2]
[358792967,1745433042989,-381.902977,0.00021918,2]
[358792968,1745433042998,-381.902977,0.00021918,2]
[358792969,1745433043008,-381.902977,0.00021918,2]
[358792970,1745433043018,-381.902977,0.00021918,2]
[358792971,1745433043028,-381.902977,0.00021918,2]
[358792972,1745433043037,-381.902977,0.00021918,2]
[358792973,1745433043048,-381.902977,0.00021918,2]
[358792974,1745433043057,-381.902977,0.00021918,2]
[358792975,1745433043067,-381.902977,0.00021918,2]
[358792976,1745433043077,-381.902977,0.00021918,2]
[358792977,1745433043087,-381.902977,0.00021918,2]
[358792978,1745433043096,-381.902977,0.00021918,2]
[358792979,1745433043107,-381.902977,0.00021918,2]
[358792980,1745433043116,-381.902977,0.00021918,2]
[358792981,1745433043126,-381.902977,0.00021918,2]
[358792982,1745433043135,-381.902977,0.00021918,2]
[358792983,1745433043145,-381.902985,0.00021918,2]
[358792984,1745433043154,-166.0,0.00021918,2]
[358792986,1745433043164,-356.019128,0.00021918,2]
[358792987,1745433043174,-282.80423733,0.00021918,2]
[358792988,1745433043183,-348.59972893,0.00022,2]
[358792990,1745433043193,-1000.0,0.00022,2]
[358792992,1745433043202,-459.6,0.00022051,3]
[358792993,1745433043211,-919.2,0.0002216,3]
[358792994,1745433043221,-202.57339602,0.00022173,2]
[358792995,1745433043230,-197.40204187,0.00022178,2]
[358792996,1745433043239,-428.32927257,0.00022178,2]
[358792997,1745433043249,-600.0,0.00022178,2]
[358792998,1745433043258,-500.0,0.00022178,2]
[358792999,1745433043268,-500.0,0.00022178,2]
[358793000,1745433043277,-500.0,0.00022178,2]
[358793001,1745433043287,-500.0,0.00022178,2]
[358793002,1745433043296,-1300.0,0.00022178,2]
[358793003,1745433043306,-500.0,0.00022178,2]
[358793004,1745433043315,-1300.0,0.00022178,2]
[358793005,1745433043324,-500.0,0.00022178,2]
[358793006,1745433043334,-1300.0,0.00022178,2]
[358793007,1745433043343,-500.0,0.00022178,2]
[358793008,1745433043353,-500.0,0.00022178,2]
[358793009,1745433043362,-1300.0,0.00022178,2]
[358793010,1745433043372,-1300.0,0.00022178,2]
[358793011,1745433043381,-1300.0,0.00022178,2]
[358793012,1745433043391,-600.0,0.00022178,2]
[358793013,1745433043401,-1300.0,0.00022178,2]
[358793014,1745433043410,-1300.0,0.00022178,2]
[358793015,1745433043420,-1300.0,0.00022178,2]
[358793016,1745433043430,-600.0,0.00022178,2]
[358793017,1745433043439,-600.0,0.00022178,2]
[358793018,1745433043448,-600.0,0.00022178,2]
[358793019,1745433043458,-1300.0,0.00022178,2]
[358793020,1745433043470,-508.85861391,0.00022178,2]
[358793021,1745433043481,-600.0,0.00022178,2]
[358793022,1745433043490,-1300.0,0.00022178,2]
[358793023,1745433043500,-600.0,0.00022178,2]
[358793024,1745433043509,-1300.0,0.00022178,2]
[358793025,1745433043521,-600.0,0.00022178,2]
[358793026,1745433043531,-600.0,0.00022178,2]
[358793027,1745433043540,-1300.0,0.00022178,2]
[358793028,1745433043554,-1300.0,0.00022178,2]
[358793029,1745433043567,-600.0,0.00022178,2]
[358793030,1745433043577,-1300.0,0.00022178,2]
[358793031,1745433043586,-600.0,0.00022178,2]
[358793032,1745433043595,-600.0,0.00022178,2]
[358793033,1745433043605,-600.0,0.00022178,2]
[358793034,1745433043618,-936.60700215,0.00022178,2]
[358793035,1745433043628,-500.0,0.00022178,2]
[358793036,1745433043638,-500.0,0.00022178,2]
[358793037,1745433043648,-500.0,0.00022178,2]
[358793038,1745433043658,-500.0,0.00022178,2]
[358793039,1745433043668,-500.0,0.00022178,2]
[358793040,1745433043677,-165.73516888,0.00022178,2]
[358793041,1745433043687,-500.0,0.00022178,2]
[358793042,1745433043697,-500.0,0.00022178,2]
[358793043,1745433043706,-2200.0,0.00022178,2]
[358793044,1745433043716,-2200.0,0.00022178,2]
[358793045,1745433043726,-2200.0,0.00022178,2]
[358793046,1745433043735,-2200.0,0.00022178,2]
[358793047,1745433043745,-2200.0,0.00022178,2]
[358793048,1745433043755,-2200.0,0.00022178,2]
[358793049,1745433043765,-2200.0,0.00022178,2]
[358793050,1745433043775,-2200.0,0.00022178,2]
[358793051,1745433043785,-2200.0,0.00022178,2]
[358793052,1745433043795,-2200.0,0.00022178,2]
[358793053,1745433043808,-2200.0,0.00022178,2]
[358793054,1745433043818,-2200.0,0.00022178,2]
[358793055,1745433043827,-2200.0,0.00022178,2]
[358793056,1745433043837,-2200.0,0.00022178,2]
[358793057,1745433043847,-2200.0,0.00022178,2]
[358793058,1745433043857,-151.0,0.00022178,7]
[358793059,1745433043866,-500.0,0.00022178,2]
[358793060,1745433043876,-500.0,0.00022178,2]
[358793061,1745433043886,-151.0,0.00022178,7]
[358793062,1745433043896,-151.0,0.00022178,7]
[358793063,1745433043906,-159.926926,0.00022178,7]
[358793064,1745433043917,-159.926926,0.00022178,7]
[358793065,1745433043927,-151.0,0.00022178,7]
[358793066,1745433043937,-151.0,0.00022178,7]
[358793067,1745433043947,-151.0,0.00022178,7]
[358793068,1745433043957,-151.0,0.00022178,7]
[358793069,1745433043966,-896.264847,0.00022178,7]
[358793070,1745433043976,-896.264847,0.00022178,7]
[358793071,1745433043986,-151.0,0.00022178,7]
[358793072,1745433043996,-289.362947,0.00022178,7]
[358793073,1745433044006,-151.0,0.00022178,7]
[358793074,1745433044016,-203.372074,0.00022178,7]
[358793075,1745433044025,-251.765975,0.00022178,7]
[358793076,1745433044035,-203.372074,0.00022178,7]
[358793077,1745433044045,-251.765975,0.00022178,7]
[358793078,1745433044056,-471.238532,0.00022178,2]
[358793079,1745433044066,-471.238532,0.00022178,2]
[358793080,1745433044076,-151.0,0.00022178,2]
[358793081,1745433044086,-151.0,0.00022178,7]
[358793082,1745433044095,-151.0,0.00022178,7]
[358793083,1745433044104,-689.285175,0.00022178,7]
[358793084,1745433044113,-689.285175,0.00022178,7]
[358793085,1745433044123,-151.0,0.00022178,7]
[358793086,1745433044132,-157.04,0.00022178,2]
[358793087,1745433044142,-7091.86323093,0.00022279,3]
[358793088,1745433044151,-223.0315306,0.00022301,2]
[358793089,1745433044160,-151.0,0.00022303,2]
[358793090,1745433044169,-1774.22419842,0.0002238,2]
[358793091,1745433044179,-600.0,0.00022503,2]
[358793092,1745433044189,-151.0,0.000227,9]
[358793093,1745433044198,-587.0,0.00022773,2]
[358793094,1745433044207,-151.0,0.00022851,2]
[358793095,1745433044216,-160.0,0.00023,3]
[358793096,1745433044225,-151.0,0.00023,7]
[358793097,1745433044235,-151.0,0.00023,7]
[358793098,1745433044245,-151.0,0.00023,7]
[358793099,1745433044257,-896.264847,0.00023,7]
[358793100,1745433044267,-896.264847,0.00023,7]
[358793101,1745433044276,-170.33328,0.00023,7]
[358793102,1745433044285,-420.82143104,0.00023,3]
[358793103,1745433044295,-1043.43506173,0.00023,2]
[358793104,1745433044306,-160.0,0.00023,3]
[358793105,1745433044316,-159.926926,0.00023048,7]
[358793106,1745433044326,-159.926926,0.00023048,7]
[358793107,1745433044335,-151.0,0.00023072,7]
[358793108,1745433044345,-151.0,0.00023072,7]
[358793109,1745433044355,-689.285175,0.00023072,7]
[358793110,1745433044364,-689.285175,0.00023072,7]
[358793111,1745433044374,-151.0,0.00023072,7]
[358793112,1745433044383,-7091.86323093,0.00023072,4]
[358793113,1745433044392,-151.0,0.000231,6]
[358793114,1745433044402,-161.6533751,0.00023287,2]
[358793115,1745433044412,-151.0,0.000233,9]
[358793116,1745433044421,-151.0,0.00023399,2]
[358793117,1745433044431,-151.0,0.000235,8]
[358793118,1745433044441,-151.0,0.000236,7]
[358793119,1745433044451,-151.0,0.000236,7]
[358793120,1745433044462,-203.372074,0.000236,7]
[358793121,1745433044475,-251.765975,0.000236,7]
[358793122,1745433044486,-203.372074,0.000236,7]
[358793123,1745433044497,-251.765975,0.000236,7]
[358793124,1745433044507,-471.238532,0.000236,2]
[358793125,1745433044519,-471.238532,0.000236,2]
[358793126,1745433044528,-151.0,0.000236,2]
[358793127,1745433044538,-160.0,0.000236,7]
[358793128,1745433044692,-160.0,0.000236,7]
[358793129,1745433044702,-160.0,0.000236,7]
[358793130,1745433044712,-12573.79847128,0.000236,7]
[358793131,1745433044721,-195.01229782,0.0002367,2]
[358793132,1745433044732,-151.0,0.000237,10]
[358793133,1745433044742,-7091.86323093,0.00023866,5]
[358793134,1745433044751,-500.16551554,0.00023888,2]
[358793135,1745433044761,-500.0,0.00023888,2]
[358793136,1745433044772,-500.0,0.00023888,2]
[358793137,1745433044782,-500.0,0.00023888,2]
[358793138,1745433044791,-500.0,0.00023888,2]
[358793139,1745433044803,-500.0,0.00023888,2]
[358793140,1745433044813,-500.0,0.00023888,2]
[358793141,1745433044823,-500.0,0.00023888,2]
[358793142,1745433044833,-280.30627809,0.00023888,2]
[358793143,1745433044843,-365.91967598,0.000239,2]
[358793144,1745433044852,-162.594617,0.00023912,3]
[358793145,1745433044862,-178.285339,0.00023912,3]
[358793146,1745433044872,-151.0,0.00023947,2]
[358793147,1745433044882,-500.0,0.00023992,2]
[358793148,1745433044891,-500.0,0.00023992,2]
[358793149,1745433044901,-500.0,0.00023992,2]
[358793150,1745433044911,-500.0,0.00023992,2]
[358793151,1745433044920,-500.0,0.00023992,2]
[358793152,1745433044930,-500.0,0.00023992,2]
[358793153,1745433044940,-500.0,0.00023992,2]
[358793154,1745433044950,-505.84413546,0.00023992,2]
[358793155,1745433044960,-500.0,0.00023992,2]
[358793156,1745433044970,-318.0490392,0.00023992,2]
[358793157,1745433044980,-151.0,0.00024,10]
[358793158,1745433044989,-420.82143104,0.00024,7]
[358793159,1745433045000,-151.0,0.00024,9]
[358793160,1745433045009,-160.0,0.00024,7]
[358793161,1745433045019,-544.0,0.00024085,2]
[358793162,1745433045029,-2246.0,0.00024085,2]
[358793163,1745433045038,-706.0,0.00024085,2]
[358793164,1745433045048,-403.0,0.00024085,2]
[358793165,1745433045059,-403.0,0.00024085,2]
[358793166,1745433045069,-159.926926,0.000241,7]
[358793167,1745433045078,-159.926926,0.000241,7]
[358793168,1745433045088,-159.926926,0.000241,7]
[358793169,1745433045097,-159.926926,0.000241,7]
[358793170,1745433045107,-151.0,0.000241,7]
[358793171,1745433045116,-151.0,0.000241,7]
[358793172,1745433045126,-151.0,0.000241,7]
[358793173,1745433045136,-162.578096,0.000241,7]
[358793174,1745433045145,-896.264847,0.000241,7]
[358793175,1745433045155,-896.264847,0.000241,7]
[358793176,1745433045164,-74.66818464,0.000241,7]
[358793180,1745433045443,-821.59666236,0.000241,7]
[358793181,1745433045454,-601.47955265,0.000241,7]
[358793182,1745433045466,-294.78529435,0.000241,7]
[358793183,1745433045482,-624.20491612,0.00024147,2]
[358793184,1745433045493,-275.79508388,0.00024147,2]
[358793185,1745433045503,-151.0,0.00024183,7]
[358793186,1745433045512,-14.21342815,0.00024198,7]
[358793187,1745433045524,-136.78657185,0.00024198,7]
[358793188,1745433045534,-689.285175,0.00024198,7]
[358793189,1745433045543,-689.285175,0.00024198,7]
[358793190,1745433045556,-126.40662615,0.000242,3]
[358793198,1745433046039,-160.0,0.000242,3]
[358793199,1745433046049,-160.0,0.000242,3]
[358793200,1745433046059,-420.82143104,0.000242,3]
[358793201,1745433046069,-191.659304,0.000242,7]
[358793202,1745433046079,-152.43581,0.000242,7]
[358793203,1745433046088,-151.0,0.00024207,7]
[358793204,1745433046098,-151.0,0.00024207,7]
[358793205,1745433046107,-203.372074,0.00024207,7]
[358793206,1745433046118,-203.372074,0.00024207,7]
[358793207,1745433046128,-471.238532,0.00024207,2]
[358793208,1745433046137,-239.62914325,0.00024207,2]
[358793209,1745433047028,-839.95942076,0.000217,3]
[358793210,1745433047038,-88.42483549,0.00024207,2]
[358793211,1745433047079,-143.18455326,0.00024207,2]
[358793212,1745433047088,-251.765975,0.00024216,7]
[358793213,1745433047099,-251.765975,0.00024216,7]
[358793214,1745433047108,-151.0,0.00024216,2]
[358793215,1745433047118,-159.926926,0.00024233,7]
[358793216,1745433047127,-159.926926,0.00024233,7]
[358793217,1745433047138,-151.0,0.00024233,7]
[358793218,1745433047147,-896.264847,0.00024233,7]
[358793219,1745433047157,-896.264847,0.00024233,7]
[358793220,1745433047167,-689.285175,0.00024233,7]
[358793221,1745433047177,-689.285175,0.00024233,7]
[358793222,1745433047186,-151.0,0.00024251,7]
[358793223,1745433047196,-203.372074,0.00024251,7]
[358793224,1745433047205,-203.372074,0.00024251,7]
[358793225,1745433047214,-471.238532,0.00024251,2]
[358793226,1745433047224,-471.238532,0.00024251,2]
[358793227,1745433047233,-251.765975,0.0002426,7]
[358793228,1745433047243,-251.765975,0.0002426,7]
[358793229,1745433047252,-151.0,0.0002426,2]
[358793230,1745433047262,-151.0,0.00024268,7]
[358793231,1745433047271,-628.86080779,0.00024273,2]
[358793232,1745433047282,-500.0,0.00024273,2]
[358793233,1745433047292,-500.0,0.00024273,2]
[358793234,1745433047301,-500.0,0.00024273,2]
[358793235,1745433047311,-689.285175,0.00024273,7]
[358793236,1745433047321,-689.285175,0.00024273,7]
[358793237,1745433047331,-198.804896,0.00024278,7]
[358793238,1745433047341,-159.926926,0.00024278,7]
[358793239,1745433047351,-159.926924,0.00024278,7]
[358793240,1745433047361,-151.0,0.00024278,7]
[358793241,1745433047371,-896.264847,0.00024278,7]
[358793242,1745433047381,-896.264845,0.00024278,7]
[358793243,1745433047390,-151.0,0.00024295,7]
[358793244,1745433047400,-203.372074,0.00024295,7]
[358793245,1745433047410,-203.372074,0.00024295,7]
[358793246,1745433047420,-471.238532,0.00024295,2]
[358793247,1745433047429,-471.238532,0.00024295,2]
[358793248,1745433047439,-160.0,0.000243,3]
[358793249,1745433047448,-160.0,0.000243,3]
[358793250,1745433047457,-420.82143104,0.000243,3]
[358793251,1745433047467,-251.765975,0.00024304,7]
[358793252,1745433047481,-251.765975,0.00024304,7]
[358793253,1745433047490,-151.0,0.00024304,2]
[358793254,1745433047500,-151.0,0.00024339,7]
[358793255,1745433047510,-151.0,0.00024339,7]
[358793256,1745433047521,-203.372074,0.00024339,7]
[358793257,1745433047531,-203.372066,0.00024339,7]
[358793258,1745433047540,-471.238532,0.00024339,2]
[358793259,1745433047553,-471.238523,0.00024339,2]
[358793260,1745433047562,-12500.0,0.00024348,3]
[358793261,1745433047571,-251.765975,0.00024348,7]
[358793262,1745433047581,-251.765984,0.00024348,7]
[358793263,1745433047591,-151.0,0.00024348,2]
[358793264,1745433047601,-7468.52603186,0.00024357,3]
[358793265,1745433047613,-1649.53662793,0.00024357,3]
[358793398,1745434237955,-5985.94400597,0.0002,2]
[358793399,1745434237965,-500.0,0.00020641,2]
[358793400,1745434237975,-500.0,0.00020641,2]
[358793401,1745434237985,-169.595369,0.00020641,2]
[358793402,1745434237995,-500.0,0.00020641,2]
[358793403,1745434238005,-500.0,0.00020641,2]
[358793404,1745434238014,-500.0,0.00020641,2]
[358793405,1745434238025,-500.0,0.00020641,2]
[358793406,1745434238034,-455.78020648,0.00020641,2]
[358793407,1745434238044,-595.53478924,0.00020641,2]
[358793408,1745434238055,-500.0,0.00020641,2]
[358793410,1745434238065,-500.0,0.00020641,2]
[358793412,1745434238075,-542.93375287,0.00020641,2]
[358793413,1745434238084,-300.0,0.00020641,2]
[358793414,1745434238094,-300.0,0.00020641,2]
[358793415,1745434238104,-12573.79847128,0.00020642,2]
[358793416,1745434238114,-160.0,0.00020642,2]
[358793417,1745434238124,-1204.90630868,0.00020684,2]
[358793418,1745434238134,-3021.0,0.000207,2]
[358793419,1745434238144,-1552.44617367,0.00020887,2]
[358793420,1745434238154,-1952.40568224,0.000209,3]
[358793421,1745434238164,-151.0,0.00020987,2]
[358793422,1745434238174,-207.4,0.00020987,2]
[358793423,1745434238184,-156.587,0.00020987,2]
[358793424,1745434238194,-151.0,0.00021,2]
[358793425,1745434238205,-151.0,0.00021,2]
[358793426,1745434238215,-151.0,0.00021,2]
[358793427,1745434238225,-151.0,0.00021,2]
[358793428,1745434238235,-257.821332,0.00021,2]
[358793429,1745434238245,-500.0,0.00021,2]
[358793430,1745434238255,-500.0,0.00021,2]
[358793431,1745434238265,-500.0,0.00021,2]
[358793432,1745434238275,-500.0,0.00021,2]
[358793433,1745434238285,-500.0,0.00021,2]
[358793434,1745434238296,-500.0,0.00021,2]
[358793435,1745434238306,-600.0,0.00021,2]
[358793436,1745434238316,-500.0,0.00021,2]
[358793437,1745434238327,-500.0,0.00021,2]
[358793438,1745434238337,-500.0,0.00021,2]
[358793439,1745434238347,-500.0,0.00021,2]
[358793440,1745434238357,-500.0,0.00021,2]
[358793441,1745434238368,-500.0,0.00021,2]
[358793442,1745434238379,-500.0,0.00021,2]
[358793443,1745434238388,-500.0,0.00021,2]
[358793444,1745434238398,-500.0,0.00021,2]
[358793445,1745434238408,-500.0,0.00021,2]
[358793446,1745434238418,-500.0,0.00021,2]
[358793447,1745434238427,-500.0,0.00021,2]
[358793448,1745434238436,-500.0,0.00021,2]
[358793449,1745434238446,-500.0,0.00021,2]
[358793450,1745434238456,-700.0,0.00021,2]
[358793451,1745434238466,-1200.0,0.00021,2]
[358793452,1745434238476,-1200.0,0.00021,2]
[358793453,1745434238486,-1200.0,0.00021,2]
[358793454,1745434238496,-1200.0,0.00021,2]
[358793455,1745434238506,-1200.0,0.00021,2]
[358793456,1745434238516,-1200.0,0.00021,2]
[358793457,1745434238526,-1200.0,0.00021,2]
[358793458,1745434238536,-1200.0,0.00021,2]
[358793459,1745434238546,-1200.0,0.00021,2]
[358793460,1745434238556,-1200.0,0.00021,2]
[358793461,1745434238566,-1200.0,0.00021,2]
[358793462,1745434238575,-1200.0,0.00021,2]
[358793463,1745434238585,-1800.0,0.00021,2]
[358793464,1745434238596,-500.0,0.00021,2]
[358793465,1745434238606,-500.0,0.00021,2]
[358793466,1745434238617,-700.0,0.00021,2]
[358793467,1745434238626,-500.0,0.00021,2]
[358793469,1745434238637,-500.0,0.00021,2]
[358793471,1745434238647,-500.0,0.00021,2]
[358793473,1745434238657,-500.0,0.00021,2]
[358793475,1745434238667,-500.0,0.00021,2]
[358793476,1745434238677,-500.0,0.00021,2]
[358793477,1745434238687,-500.0,0.00021,2]
[358793478,1745434238697,-500.0,0.00021,2]
[358793479,1745434238706,-800.0,0.00021,2]
[358793480,1745434238716,-500.0,0.00021,2]
[358793481,1745434238725,-151.0,0.00021,2]
[358793482,1745434238735,-151.0,0.00021,2]
[358793483,1745434238744,-500.0,0.00021,2]
[358793485,1745434238753,-151.0,0.00021,2]
[358793487,1745434238763,-157.04,0.00021,2]
[358793488,1745434238773,-151.0,0.00021,2]
[358793489,1745434238783,-151.0,0.00021,2]
[358793491,1745434238793,-199.48579549,0.00021,2]
[358793492,1745434238803,-194.29474869,0.00021,2]
[358793494,1745434238813,-151.0,0.0002101,2]
[358793495,1745434238823,-151.0,0.0002101,2]
[358793496,1745434238834,-151.0,0.0002101,2]
[358793497,1745434238844,-151.0,0.0002113,2]
[358793498,1745434238855,-151.0,0.0002113,2]
[358793499,1745434238867,-212.772043,0.0002113,2]
[358793500,1745434238878,-151.0,0.0002113,2]
[358793501,1745434238888,-151.0,0.0002114,2]
[358793502,1745434238900,-151.0,0.0002114,2]
[358793503,1745434238910,-151.0,0.0002114,2]
[358793504,1745434238921,-500.0,0.00021231,2]
[358793506,1745434238931,-500.0,0.00021246,2]
[358793507,1745434238943,-568.1204122,0.00021246,2]
[358793508,1745434238953,-500.0,0.00021246,2]
[358793509,1745434238963,-518.52289076,0.00021246,2]
[358793510,1745434238973,-500.0,0.0002125,2]
[358793511,1745434238983,-500.0,0.00021264,2]
[358793513,1745434238993,-500.0,0.00021264,2]
[358793514,1745434239003,-500.0,0.00021264,2]
[358793515,1745434239014,-500.0,0.00021264,2]
[358793516,1745434239025,-500.0,0.00021264,2]
[358793517,1745434239036,-500.0,0.00021264,2]
[358793519,1745434239046,-300.0,0.00021264,2]
[358793520,1745434239058,-500.0,0.00021271,2]
[358793521,1745434239068,-596.46313052,0.00021274,2]
[358793522,1745434239078,-151.0,0.00021274,2]
[358793523,1745434239088,-596.03380567,0.00021274,2]
[358793524,1745434239098,-151.0,0.00021274,2]
[358793525,1745434239109,-151.0,0.00021274,2]
[358793526,1745434239119,-151.0,0.00021274,2]
[358793527,1745434239129,-500.0,0.00021287,2]
[358793528,1745434239139,-500.0,0.00021287,2]
[358793529,1745434239149,-500.0,0.00021287,2]
[358793530,1745434239159,-500.0,0.000213,2]
[358793531,1745434239170,-500.0,0.000213,2]
[358793532,1745434239180,-500.36044069,0.00021442,2]
[358793533,1745434239190,-151.0,0.00021486,2]
[358793534,1745434239200,-151.0,0.00021486,2]
[358793535,1745434239209,-151.0,0.00021486,2]
[358793536,1745434239219,-151.0,0.00021486,2]
[358793537,1745434239230,-151.0,0.00021486,2]
[358793538,1745434239242,-151.0,0.00021486,2]
[358793539,1745434239252,-254.67157051,0.00021486,2]
[358793540,1745434239262,-185.85435537,0.00021486,2]
[358793541,1745434239273,-365.66433231,0.0002152,2]
[358793542,1745434239283,-151.0,0.00021535,2]
[358793543,1745434239293,-151.0,0.00021548,2]
[358793544,1745434239303,-706.0,0.0002155,2]
[358793545,1745434239314,-544.0,0.0002155,2]
[358793546,1745434239324,-2246.0,0.0002155,2]
[358793547,1745434239335,-403.0,0.0002155,2]
[358793548,1745434239345,-403.0,0.0002155,2]
[358793549,1745434239356,-268.02158428,0.00021658,2]
[358793550,1745434239366,-12573.79847128,0.00021659,3]
[358793551,1745434239376,-839.95942076,0.00021659,3]
[358793552,1745434239386,-160.0,0.00021659,3]
[358793553,1745434239396,-160.0,0.00021659,3]
[358793554,1745434239406,-1952.4056822,0.00021659,3]
[358793555,1745434239415,-420.82143104,0.00021664,2]
[358793557,1745434239426,-160.0,0.00021664,2]
[358793559,1745434239436,-160.0,0.00021664,2]
[358793561,1745434239446,-160.0,0.00021665,2]
[358793562,1745434239457,-160.0,0.00021665,2]
[358793563,1745434239469,-160.0,0.00021665,2]
[358793564,1745434239479,-839.95942076,0.00021665,2]
[358793565,1745434239490,-151.0,0.00021698,2]
[358793566,1745434239500,-151.0,0.00021698,2]
[358793567,1745434239511,-151.0,0.00021698,2]
[358793568,1745434239522,-151.0,0.00021698,2]
[358793569,1745434239532,-151.0,0.00021698,2]
[358793570,1745434239542,-151.0,0.00021698,2]
[358793571,1745434239688,-340.5022631,0.00021766,2]
[358793572,1745434239698,-160.0,0.00021917,2]
[358793573,1745434239709,-151.0,0.00021918,2]
[358793574,1745434239719,-151.0,0.00021918,2]
[358793575,1745434239729,-151.0,0.00021918,2]
[358793576,1745434239738,-151.0,0.00021918,2]
[358793577,1745434239748,-151.0,0.00021918,2]
[358793578,1745434239759,-248.514893,0.00021918,2]
[358793579,1745434239770,-166.0,0.00021918,2]
[358793580,1745434239780,-356.019128,0.00021918,2]
[358793581,1745434239790,-282.80423733,0.00021918,2]
[358793582,1745434239800,-151.0,0.00022083,2]
[358793583,1745434239810,-151.0,0.00022178,7]
[358793584,1745434239820,-151.0,0.00022178,7]
[358793585,1745434239829,-151.0,0.00022178,7]
[358793586,1745434239840,-151.0,0.00022178,7]
[358793587,1745434239850,-226.238183,0.00022178,7]
[358793588,1745434239866,-151.0,0.00022178,7]
[358793589,1745434239876,-151.0,0.00022178,7]
[358793590,1745434239885,-210.64382842,0.00022356,2]
[358793591,1745434239895,-1952.4056822,0.00022417,4]
[358793592,1745434239906,-420.0,0.00022461,2]
[358793593,1745434239915,-151.0,0.00022631,2]
[358793594,1745434239924,-151.75493893,0.000229,2]
[358793595,1745434239936,-600.0,0.00022908,2]